[Event "Titled Tuesday Blitz November 29 Late 2022"]
[White "Kamsky, Gata"]
[Black "Mladenovic, Stefan"]
[WhiteFideId "2000024"]
[BlackFideId "942227"]
[WhiteElo "2666"]
[BlackElo "2337"]
[Result "1-0"]
[Round "06"]
[TimeControl "180+1"]
[Date "2022.11.30"]
[WhiteClock "0:00:49"]
[BlackClock "0:00:04"]

1. d4 {[%clk 0:03:00]}  Nf6 {[%clk 0:02:57]} 2. Bf4 {[%clk 0:02:51]}  e6 {[%clk 0:02:54]} 3. e3 {[%clk 0:02:50]}  c5 {[%clk 0:02:53]} 4. c3 {[%clk 0:02:48]}  cxd4 {[%clk 0:02:53]} 5. exd4 {[%clk 0:02:46]}  b6 {[%clk 0:02:53]} 6. Nf3 {[%clk 0:02:37]}  Bb7 {[%clk 0:02:52]} 7. Nbd2 {[%clk 0:02:36]}  Be7 {[%clk 0:02:53]} 8. h3 {[%clk 0:02:36]}  O-O {[%clk 0:02:53]} 9. a4 {[%clk 0:02:35]}  a6 {[%clk 0:02:52]} 10. Bd3 {[%clk 0:02:34]}  d6 {[%clk 0:02:53]} 11. O-O {[%clk 0:02:33]}  Nbd7 {[%clk 0:02:53]} 12. Bh2 {[%clk 0:02:32]}  Re8 {[%clk 0:02:54]} 13. Re1 {[%clk 0:02:30]}  Nf8 {[%clk 0:02:54]} 14. Nc4 {[%clk 0:02:25]}  Ng6 {[%clk 0:02:54]} 15. Nfd2 {[%clk 0:02:20]}  Nd5 {[%clk 0:02:46]} 16. Bf1 {[%clk 0:02:19]}  Ndf4 {[%clk 0:02:43]} 17. Qb3 {[%clk 0:02:15]}  Nd5 {[%clk 0:02:02]} 18. Ne4 {[%clk 0:02:11]}  e5 {[%clk 0:01:33]} 19. dxe5 {[%clk 0:02:06]}  dxe5 {[%clk 0:01:34]} 20. Nxe5 {[%clk 0:01:57]}  Nxe5 {[%clk 0:01:33]} 21. Bxe5 {[%clk 0:01:57]}  Bf8 {[%clk 0:01:33]} 22. Bg3 {[%clk 0:01:54]}  h5 {[%clk 0:01:25]} 23. Rad1 {[%clk 0:01:51]}  h4 {[%clk 0:01:24]} 24. Bh2 {[%clk 0:01:46]}  Qd7 {[%clk 0:00:40]} 25. c4 {[%clk 0:01:41]}  Qf5 {[%clk 0:00:37]} 26. Nd6 {[%clk 0:01:23]}  Bxd6 {[%clk 0:00:36]} 27. Bxd6 {[%clk 0:01:23]}  Nf6 {[%clk 0:00:35]} 28. Qxb6 {[%clk 0:01:21]}  Be4 {[%clk 0:00:31]} 29. Qc5 {[%clk 0:01:16]}  Qg6 {[%clk 0:00:27]} 30. Qd4 {[%clk 0:01:11]}  Nh7 {[%clk 0:00:22]} 31. Bf4 {[%clk 0:01:08]}  Bf3 {[%clk 0:00:17]} 32. Rxe8+ {[%clk 0:01:05]}  Rxe8 {[%clk 0:00:18]} 33. Rd3 {[%clk 0:01:04]}  Bc6 {[%clk 0:00:14]} 34. Re3 {[%clk 0:01:04]}  Bxa4 {[%clk 0:00:11]} 35. Rxe8+ {[%clk 0:00:57]}  Bxe8 {[%clk 0:00:12]} 36. Qd8 {[%clk 0:00:53]}  Qe4 {[%clk 0:00:12]} 37. Qxh4 {[%clk 0:00:51]}  Nf8 {[%clk 0:00:09]} 38. Bg3 {[%clk 0:00:51]}  Qc2 {[%clk 0:00:05]} 39. Qd8 {[%clk 0:00:50]}  Qe4 {[%clk 0:00:04]} 40. b4 {[%clk 0:00:49]} 1-0


[Site "https://www.chess.com"]

[Event "Titled Tuesday Blitz November 29 Late 2022"]
[White "Kollars, Dmitrij"]
[Black "Jaracz, Pawel"]
[WhiteFideId "12909572"]
[BlackFideId "1102222"]
[WhiteElo "2584"]
[BlackElo "2459"]
[Result "1-0"]
[Round "06"]
[TimeControl "180+1"]
[Date "2022.11.30"]
[WhiteClock "0:00:10"]
[BlackClock "0:00:04"]

1. d4 {[%clk 0:02:50]}  Nf6 {[%clk 0:02:59]} 2. c4 {[%clk 0:02:50]}  e6 {[%clk 0:02:59]} 3. Nc3 {[%clk 0:02:51]}  Bb4 {[%clk 0:02:58]} 4. e3 {[%clk 0:02:51]}  c5 {[%clk 0:02:56]} 5. Bd3 {[%clk 0:02:46]}  Nc6 {[%clk 0:02:55]} 6. Nf3 {[%clk 0:02:41]}  Bxc3+ {[%clk 0:02:55]} 7. bxc3 {[%clk 0:02:41]}  d6 {[%clk 0:02:56]} 8. O-O {[%clk 0:02:35]}  e5 {[%clk 0:02:55]} 9. d5 {[%clk 0:02:27]}  Ne7 {[%clk 0:02:55]} 10. e4 {[%clk 0:02:23]}  Ng6 {[%clk 0:02:45]} 11. Ne1 {[%clk 0:02:21]}  O-O {[%clk 0:02:29]} 12. g3 {[%clk 0:02:19]}  Bh3 {[%clk 0:02:28]} 13. Ng2 {[%clk 0:02:19]}  Qd7 {[%clk 0:02:17]} 14. Bg5 {[%clk 0:02:16]}  Ng4 {[%clk 0:02:13]} 15. f3 {[%clk 0:02:13]}  h6 {[%clk 0:02:12]} 16. Bd2 {[%clk 0:02:09]}  Nf6 {[%clk 0:02:12]} 17. Rf2 {[%clk 0:02:09]}  Nh7 {[%clk 0:02:07]} 18. Ne3 {[%clk 0:02:00]}  Ne7 {[%clk 0:02:05]} 19. g4 {[%clk 0:01:47]}  Ng5 {[%clk 0:02:03]} 20. Kh1 {[%clk 0:01:46]}  g6 {[%clk 0:01:44]} 21. Qg1 {[%clk 0:01:41]}  f6 {[%clk 0:01:16]} 22. Qg3 {[%clk 0:01:37]}  Rf7 {[%clk 0:01:15]} 23. Nd1 {[%clk 0:01:36]}  Rh7 {[%clk 0:01:13]} 24. Re2 {[%clk 0:01:25]}  Rf8 {[%clk 0:01:11]} 25. Nf2 {[%clk 0:01:25]}  h5 {[%clk 0:01:05]} 26. Nxh3 {[%clk 0:01:19]}  Nxf3 {[%clk 0:01:04]} 27. g5 {[%clk 0:00:48]}  Nxd2 {[%clk 0:00:56]} 28. Rxd2 {[%clk 0:00:49]}  f5 {[%clk 0:00:46]} 29. Rf1 {[%clk 0:00:47]}  Rhf7 {[%clk 0:00:44]} 30. Rdf2 {[%clk 0:00:44]}  f4 {[%clk 0:00:25]} 31. Qg2 {[%clk 0:00:42]}  Qg4 {[%clk 0:00:20]} 32. Ng1 {[%clk 0:00:40]}  Qd7 {[%clk 0:00:18]} 33. Nf3 {[%clk 0:00:40]}  Qa4 {[%clk 0:00:18]} 34. Rb1 {[%clk 0:00:37]}  Nc8 {[%clk 0:00:17]} 35. Qf1 {[%clk 0:00:31]}  Kg7 {[%clk 0:00:16]} 36. Qd1 {[%clk 0:00:28]}  Qa5 {[%clk 0:00:14]} 37. Qb3 {[%clk 0:00:28]}  Qd8 {[%clk 0:00:10]} 38. Bf1 {[%clk 0:00:28]}  Qd7 {[%clk 0:00:10]} 39. Qd1 {[%clk 0:00:16]}  Nb6 {[%clk 0:00:09]} 40. Rb5 {[%clk 0:00:15]}  Qc8 {[%clk 0:00:08]} 41. a4 {[%clk 0:00:14]}  Qg4 {[%clk 0:00:07]} 42. a5 {[%clk 0:00:14]}  Nc8 {[%clk 0:00:07]} 43. Bg2 {[%clk 0:00:13]}  Qd7 {[%clk 0:00:06]} 44. Qf1 {[%clk 0:00:12]}  Qc7 {[%clk 0:00:07]} 45. Bh3 {[%clk 0:00:12]}  a6 {[%clk 0:00:07]} 46. Rb3 {[%clk 0:00:11]}  Qxa5 {[%clk 0:00:07]} 47. Qb1 {[%clk 0:00:12]}  Qa4 {[%clk 0:00:05]} 48. Be6 {[%clk 0:00:12]}  Qxc4 {[%clk 0:00:02]} 49. Rxb7 {[%clk 0:00:10]}  Ne7 {[%clk 0:00:02]} 50. Bxf7 {[%clk 0:00:10]}  Rxf7 {[%clk 0:00:03]} 51. Qb6 {[%clk 0:00:10]}  Qxe4 {[%clk 0:00:03]} 52. Qxd6 {[%clk 0:00:09]}  Qxd5 {[%clk 0:00:01]} 53. Qxd5 {[%clk 0:00:08]}  Nxd5 {[%clk 0:00:02]} 54. Rxf7+ {[%clk 0:00:09]}  Kxf7 {[%clk 0:00:02]} 55. Nxe5+ {[%clk 0:00:09]}  Ke6 {[%clk 0:00:03]} 56. Nxg6 {[%clk 0:00:09]}  Kf5 {[%clk 0:00:04]} 57. Nxf4 {[%clk 0:00:09]}  Nxf4 {[%clk 0:00:04]} 58. g6 {[%clk 0:00:10]} 1-0


[Site "https://www.chess.com"]

[Event "Titled Tuesday Blitz November 29 Late 2022"]
[White "Korchmar, Vasiliy"]
[Black "Girsh, Daniel"]
[WhiteFideId "24131750"]
[BlackFideId "30949190"]
[WhiteElo "2370"]
[BlackElo "2075"]
[Result "0-1"]
[Round "06"]
[TimeControl "180+1"]
[Date "2022.11.30"]
[WhiteClock "0:00:04"]
[BlackClock "0:00:05"]

1. e4 {[%clk 0:03:00]}  c5 {[%clk 0:02:59]} 2. Nf3 {[%clk 0:03:00]}  d6 {[%clk 0:02:57]} 3. d4 {[%clk 0:03:01]}  cxd4 {[%clk 0:02:58]} 4. Nxd4 {[%clk 0:03:01]}  Nf6 {[%clk 0:02:58]} 5. Nc3 {[%clk 0:03:02]}  a6 {[%clk 0:02:59]} 6. Be2 {[%clk 0:03:02]}  e5 {[%clk 0:02:59]} 7. Nb3 {[%clk 0:03:03]}  Be7 {[%clk 0:02:59]} 8. O-O {[%clk 0:03:03]}  O-O {[%clk 0:03:00]} 9. Be3 {[%clk 0:03:04]}  Be6 {[%clk 0:03:00]} 10. Nd5 {[%clk 0:03:04]}  Bxd5 {[%clk 0:02:53]} 11. exd5 {[%clk 0:03:05]}  Nbd7 {[%clk 0:02:49]} 12. c4 {[%clk 0:03:05]}  Ne8 {[%clk 0:02:48]} 13. Qd2 {[%clk 0:03:04]}  f5 {[%clk 0:02:30]} 14. f4 {[%clk 0:03:04]}  Rc8 {[%clk 0:02:20]} 15. Rac1 {[%clk 0:02:58]}  b6 {[%clk 0:02:12]} 16. Kh1 {[%clk 0:02:47]}  a5 {[%clk 0:02:13]} 17. Na1 {[%clk 0:02:41]}  Nc5 {[%clk 0:02:08]} 18. Bf3 {[%clk 0:02:37]}  exf4 {[%clk 0:01:50]} 19. Bxf4 {[%clk 0:02:38]}  g5 {[%clk 0:01:50]} 20. Be3 {[%clk 0:02:38]}  Ng7 {[%clk 0:01:44]} 21. Nc2 {[%clk 0:02:33]}  g4 {[%clk 0:01:26]} 22. Be2 {[%clk 0:02:33]}  Ne4 {[%clk 0:01:26]} 23. Qe1 {[%clk 0:02:34]}  Bg5 {[%clk 0:01:13]} 24. Bd3 {[%clk 0:02:26]}  Re8 {[%clk 0:01:09]} 25. b3 {[%clk 0:01:18]}  Qf6 {[%clk 0:01:09]} 26. Bxe4 {[%clk 0:01:01]}  Rxe4 {[%clk 0:01:08]} 27. Qf2 {[%clk 0:01:02]}  f4 {[%clk 0:01:01]} 28. Bd4 {[%clk 0:01:00]}  Qh6 {[%clk 0:01:00]} 29. Bxg7 {[%clk 0:00:58]}  Kxg7 {[%clk 0:00:58]} 30. Qxb6 {[%clk 0:00:55]}  Rf8 {[%clk 0:00:48]} 31. Nd4 {[%clk 0:00:53]}  f3 {[%clk 0:00:41]} 32. gxf3 {[%clk 0:00:24]}  Bxc1 {[%clk 0:00:34]} 33. Ne6+ {[%clk 0:00:20]}  Rxe6 {[%clk 0:00:33]} 34. dxe6 {[%clk 0:00:21]}  gxf3 {[%clk 0:00:20]} 35. Qg1+ {[%clk 0:00:18]}  Bg5 {[%clk 0:00:18]} 36. e7 {[%clk 0:00:19]}  Re8 {[%clk 0:00:17]} 37. Qd4+ {[%clk 0:00:12]}  Qf6 {[%clk 0:00:14]} 38. Qg4 {[%clk 0:00:08]}  h5 {[%clk 0:00:14]} 39. Qxh5 {[%clk 0:00:05]}  Qg6 {[%clk 0:00:13]} 40. Qxf3 {[%clk 0:00:03]}  Rxe7 {[%clk 0:00:13]} 41. Rg1 {[%clk 0:00:03]}  Qf6 {[%clk 0:00:11]} 42. Qg2 {[%clk 0:00:03]}  Kh6 {[%clk 0:00:08]} 43. Qh3+ {[%clk 0:00:02]}  Kg6 {[%clk 0:00:07]} 44. Qg2 {[%clk 0:00:03]}  Qf4 {[%clk 0:00:07]} 45. a3 {[%clk 0:00:02]}  Re3 {[%clk 0:00:06]} 46. b4 {[%clk 0:00:03]}  Qf3 {[%clk 0:00:06]} 47. bxa5 {[%clk 0:00:02]}  Qxg2+ {[%clk 0:00:06]} 48. Kxg2 {[%clk 0:00:03]}  Rxa3 {[%clk 0:00:06]} 49. Rd1 {[%clk 0:00:03]}  Bf4 {[%clk 0:00:05]} 50. Rd5 {[%clk 0:00:04]}  Be5 {[%clk 0:00:04]} 51. h4 {[%clk 0:00:03]}  Kf6 {[%clk 0:00:04]} 52. Rb5 {[%clk 0:00:03]}  Ke6 {[%clk 0:00:04]} 53. h5 {[%clk 0:00:04]}  Rg3+ {[%clk 0:00:04]} 54. Kf2 {[%clk 0:00:03]}  Rh3 {[%clk 0:00:04]} 55. a6 {[%clk 0:00:04]}  Rxh5 {[%clk 0:00:04]} 56. a7 {[%clk 0:00:02]}  Rh2+ {[%clk 0:00:02]} 57. Kf3 {[%clk 0:00:02]}  Ra2 {[%clk 0:00:03]} 58. Rb7 {[%clk 0:00:02]}  Bd4 {[%clk 0:00:03]} 59. Ke4 {[%clk 0:00:01]}  Bxa7 {[%clk 0:00:02]} 60. Rh7 {[%clk 0:00:01]}  Bc5 {[%clk 0:00:03]} 61. Rh6+ {[%clk 0:00:02]}  Kd7 {[%clk 0:00:03]} 62. Kd5 {[%clk 0:00:03]}  Rd2+ {[%clk 0:00:03]} 63. Ke4 {[%clk 0:00:03]}  Rd4+ {[%clk 0:00:04]} 64. Kf5 {[%clk 0:00:04]}  Rxc4 {[%clk 0:00:05]} 0-1


[Site "https://www.chess.com"]

[Event "Titled Tuesday Blitz November 29 Late 2022"]
[White "Leitao, Rafael"]
[Black "Melaugh, Shane"]
[WhiteFideId "2101246"]
[BlackFideId "2509580"]
[WhiteElo "2609"]
[BlackElo "2025"]
[Result "1-0"]
[Round "06"]
[TimeControl "180+1"]
[Date "2022.11.30"]
[WhiteClock "0:00:44"]
[BlackClock "0:00:04"]

1. c4 {[%clk 0:03:00]}  e5 {[%clk 0:02:59]} 2. Nc3 {[%clk 0:03:00]}  Nc6 {[%clk 0:02:58]} 3. Nf3 {[%clk 0:02:59]}  f5 {[%clk 0:02:58]} 4. d4 {[%clk 0:02:59]}  e4 {[%clk 0:02:59]} 5. Ng5 {[%clk 0:02:59]}  Nf6 {[%clk 0:02:49]} 6. Nh3 {[%clk 0:02:58]}  Bb4 {[%clk 0:02:47]} 7. Bg5 {[%clk 0:02:58]}  Bxc3+ {[%clk 0:02:32]} 8. bxc3 {[%clk 0:02:58]}  O-O {[%clk 0:02:33]} 9. Nf4 {[%clk 0:02:57]}  d6 {[%clk 0:02:20]} 10. Nd5 {[%clk 0:02:50]}  Kh8 {[%clk 0:02:16]} 11. e3 {[%clk 0:02:47]}  Ne7 {[%clk 0:02:12]} 12. Bxf6 {[%clk 0:02:33]}  gxf6 {[%clk 0:02:13]} 13. g3 {[%clk 0:02:28]}  Be6 {[%clk 0:02:11]} 14. Nf4 {[%clk 0:02:24]}  Bf7 {[%clk 0:02:08]} 15. Be2 {[%clk 0:02:22]}  Ng6 {[%clk 0:02:07]} 16. Nh5 {[%clk 0:02:21]}  c6 {[%clk 0:02:01]} 17. O-O {[%clk 0:02:19]}  Qe7 {[%clk 0:01:49]} 18. Rb1 {[%clk 0:02:05]}  Rg8 {[%clk 0:01:48]} 19. Kh1 {[%clk 0:02:05]}  Nf8 {[%clk 0:01:43]} 20. Nf4 {[%clk 0:01:55]}  Ne6 {[%clk 0:01:41]} 21. Ng2 {[%clk 0:01:52]}  b6 {[%clk 0:01:39]} 22. Nh4 {[%clk 0:01:49]}  Bg6 {[%clk 0:01:38]} 23. f4 {[%clk 0:01:38]}  d5 {[%clk 0:01:29]} 24. g4 {[%clk 0:01:38]}  fxg4 {[%clk 0:01:24]} 25. f5 {[%clk 0:01:38]}  Bh5 {[%clk 0:01:09]} 26. fxe6 {[%clk 0:01:36]}  Qxe6 {[%clk 0:01:10]} 27. Qe1 {[%clk 0:01:30]}  Rg5 {[%clk 0:01:05]} 28. Qg3 {[%clk 0:01:27]}  dxc4 {[%clk 0:01:00]} 29. Rf2 {[%clk 0:01:19]}  Bg6 {[%clk 0:00:50]} 30. Qf4 {[%clk 0:01:12]}  Rf8 {[%clk 0:00:47]} 31. Rbf1 {[%clk 0:01:09]}  Kg7 {[%clk 0:00:44]} 32. Rg1 {[%clk 0:01:03]}  h5 {[%clk 0:00:43]} 33. Qg3 {[%clk 0:00:57]}  b5 {[%clk 0:00:38]} 34. Rgf1 {[%clk 0:00:57]}  a5 {[%clk 0:00:37]} 35. a3 {[%clk 0:00:57]}  Be8 {[%clk 0:00:18]} 36. Qc7+ {[%clk 0:00:49]}  Kg8 {[%clk 0:00:10]} 37. Nf5 {[%clk 0:00:45]}  Bg6 {[%clk 0:00:04]} 38. Qg7# {[%clk 0:00:44]} 1-0


[Site "https://www.chess.com"]

[Event "Titled Tuesday Blitz November 29 Late 2022"]
[White "Marcolino, Daniel Mattos"]
[Black "Rosenberg, Evan S"]
[WhiteFideId "2106841"]
[BlackFideId "2019299"]
[WhiteElo "2117"]
[BlackElo "2358"]
[Result "1-0"]
[Round "06"]
[TimeControl "180+1"]
[Date "2022.11.30"]
[WhiteClock "0:01:27"]
[BlackClock "0:00:08"]

1. d4 {[%clk 0:03:00]}  d5 {[%clk 0:02:59]} 2. Nf3 {[%clk 0:03:01]}  Bf5 {[%clk 0:02:58]} 3. g3 {[%clk 0:03:01]}  e6 {[%clk 0:02:49]} 4. Bg2 {[%clk 0:03:01]}  Nf6 {[%clk 0:02:46]} 5. c4 {[%clk 0:03:02]}  c6 {[%clk 0:02:40]} 6. Nc3 {[%clk 0:03:02]}  h6 {[%clk 0:02:40]} 7. Qb3 {[%clk 0:03:02]}  Qb6 {[%clk 0:02:39]} 8. c5 {[%clk 0:03:02]}  Qxb3 {[%clk 0:02:29]} 9. axb3 {[%clk 0:03:03]}  Nbd7 {[%clk 0:02:21]} 10. b4 {[%clk 0:03:03]}  b6 {[%clk 0:01:46]} 11. O-O {[%clk 0:02:34]}  Be7 {[%clk 0:01:17]} 12. Ra2 {[%clk 0:02:33]}  O-O {[%clk 0:01:14]} 13. Bf4 {[%clk 0:02:33]}  g5 {[%clk 0:01:08]} 14. Be5 {[%clk 0:02:30]}  Nxe5 {[%clk 0:01:04]} 15. Nxe5 {[%clk 0:02:30]}  Rfc8 {[%clk 0:00:26]} 16. Rfa1 {[%clk 0:02:24]}  bxc5 {[%clk 0:00:21]} 17. bxc5 {[%clk 0:02:23]}  Rc7 {[%clk 0:00:18]} 18. Ra6 {[%clk 0:02:23]}  Ne4 {[%clk 0:00:05]} 19. Nxe4 {[%clk 0:02:10]}  Bxe4 {[%clk 0:00:05]} 20. Bxe4 {[%clk 0:02:10]}  dxe4 {[%clk 0:00:06]} 21. Nxc6 {[%clk 0:02:10]}  Bf6 {[%clk 0:00:06]} 22. e3 {[%clk 0:02:07]}  Kg7 {[%clk 0:00:04]} 23. b4 {[%clk 0:02:06]}  Rb7 {[%clk 0:00:03]} 24. Rxa7 {[%clk 0:02:01]}  Raxa7 {[%clk 0:00:02]} 25. Rxa7 {[%clk 0:02:02]}  Rxa7 {[%clk 0:00:02]} 26. Nxa7 {[%clk 0:02:02]}  Bd8 {[%clk 0:00:02]} 27. b5 {[%clk 0:02:01]}  Kf8 {[%clk 0:00:02]} 28. b6 {[%clk 0:02:02]}  Ke7 {[%clk 0:00:02]} 29. b7 {[%clk 0:02:02]}  Bc7 {[%clk 0:00:02]} 30. Nc6+ {[%clk 0:02:03]}  Kd7 {[%clk 0:00:02]} 31. b8=Q {[%clk 0:02:03]}  Bxb8 {[%clk 0:00:03]} 32. Nxb8+ {[%clk 0:02:03]}  Kc7 {[%clk 0:00:03]} 33. Na6+ {[%clk 0:02:03]}  Kc6 {[%clk 0:00:02]} 34. Kf1 {[%clk 0:02:00]}  f5 {[%clk 0:00:02]} 35. Ke2 {[%clk 0:02:00]}  h5 {[%clk 0:00:02]} 36. Kd2 {[%clk 0:01:59]}  h4 {[%clk 0:00:02]} 37. gxh4 {[%clk 0:01:56]}  gxh4 {[%clk 0:00:02]} 38. Nb4+ {[%clk 0:01:54]}  Kb5 {[%clk 0:00:02]} 39. Nc2 {[%clk 0:01:53]}  e5 {[%clk 0:00:02]} 40. h3 {[%clk 0:01:50]}  f4 {[%clk 0:00:02]} 41. dxe5 {[%clk 0:01:41]}  Kxc5 {[%clk 0:00:02]} 42. exf4 {[%clk 0:01:40]}  Kd5 {[%clk 0:00:02]} 43. Ke3 {[%clk 0:01:41]}  Ke6 {[%clk 0:00:02]} 44. Kxe4 {[%clk 0:01:41]}  Kf7 {[%clk 0:00:03]} 45. f5 {[%clk 0:01:41]}  Kg8 {[%clk 0:00:04]} 46. e6 {[%clk 0:01:40]}  Kh8 {[%clk 0:00:05]} 47. Ke5 {[%clk 0:01:40]}  Kg8 {[%clk 0:00:06]} 48. Kd6 {[%clk 0:01:41]}  Kf8 {[%clk 0:00:07]} 49. Kd7 {[%clk 0:01:41]}  Kg8 {[%clk 0:00:07]} 50. e7 {[%clk 0:01:41]}  Kf7 {[%clk 0:00:07]} 51. e8=Q+ {[%clk 0:01:41]}  Kf6 {[%clk 0:00:08]} 52. Qe6+ {[%clk 0:01:41]}  Kg5 {[%clk 0:00:09]} 53. Qg6+ {[%clk 0:01:40]}  Kf4 {[%clk 0:00:09]} 54. f6 {[%clk 0:01:34]}  Kf3 {[%clk 0:00:10]} 55. f7 {[%clk 0:01:35]}  Ke2 {[%clk 0:00:10]} 56. f8=Q {[%clk 0:01:33]}  Kf1 {[%clk 0:00:11]} 57. Ne3+ {[%clk 0:01:32]}  Ke2 {[%clk 0:00:11]} 58. Qg4+ {[%clk 0:01:30]}  Ke1 {[%clk 0:00:11]} 59. Qfb4+ {[%clk 0:01:29]}  Kxf2 {[%clk 0:00:10]} 60. Qg2+ {[%clk 0:01:26]}  Kxe3 {[%clk 0:00:08]} 61. Qbe4# {[%clk 0:01:27]} 1-0


[Site "https://www.chess.com"]

[Event "Titled Tuesday Blitz November 29 Late 2022"]
[White "Martinez Reyes, Pedro Ramon"]
[Black "Rorrer, Grayson"]
[WhiteFideId "3901807"]
[BlackFideId "30944996"]
[WhiteElo "2354"]
[BlackElo "2130"]
[Result "1-0"]
[Round "06"]
[TimeControl "180+1"]
[Date "2022.11.30"]
[WhiteClock "0:00:59"]
[BlackClock "0:01:28"]

1. f4 {[%clk 0:03:00]}  d5 {[%clk 0:02:53]} 2. Nf3 {[%clk 0:03:00]}  Nf6 {[%clk 0:02:54]} 3. e3 {[%clk 0:03:00]}  g6 {[%clk 0:02:54]} 4. b4 {[%clk 0:03:00]}  Bg7 {[%clk 0:02:53]} 5. Bb2 {[%clk 0:03:00]}  O-O {[%clk 0:02:54]} 6. Be2 {[%clk 0:03:00]}  a5 {[%clk 0:02:53]} 7. b5 {[%clk 0:03:00]}  c5 {[%clk 0:02:54]} 8. a4 {[%clk 0:02:56]}  Bf5 {[%clk 0:02:53]} 9. O-O {[%clk 0:02:54]}  Nbd7 {[%clk 0:02:52]} 10. h3 {[%clk 0:02:54]}  Ne4 {[%clk 0:02:37]} 11. Bxg7 {[%clk 0:02:52]}  Kxg7 {[%clk 0:02:38]} 12. Qe1 {[%clk 0:02:27]}  Ndf6 {[%clk 0:02:31]} 13. d3 {[%clk 0:02:25]}  Nd6 {[%clk 0:02:31]} 14. Nbd2 {[%clk 0:02:25]}  Bd7 {[%clk 0:02:28]} 15. Ne5 {[%clk 0:02:24]}  Nf5 {[%clk 0:02:28]} 16. Bf3 {[%clk 0:02:22]}  e6 {[%clk 0:02:20]} 17. g4 {[%clk 0:02:22]}  Nd6 {[%clk 0:02:19]} 18. g5 {[%clk 0:02:19]}  Ng8 {[%clk 0:02:19]} 19. h4 {[%clk 0:02:11]}  f6 {[%clk 0:02:13]} 20. Ng4 {[%clk 0:02:07]}  h5 {[%clk 0:02:08]} 21. gxf6+ {[%clk 0:01:59]}  Nxf6 {[%clk 0:02:07]} 22. Ne5 {[%clk 0:02:00]}  Nf5 {[%clk 0:02:02]} 23. Bg2 {[%clk 0:01:52]}  Ng4 {[%clk 0:02:00]} 24. Ndf3 {[%clk 0:01:49]}  Nxe5 {[%clk 0:01:59]} 25. Nxe5 {[%clk 0:01:49]}  Nxh4 {[%clk 0:01:59]} 26. Nxd7 {[%clk 0:01:32]}  Qxd7 {[%clk 0:01:49]} 27. Qxh4 {[%clk 0:01:32]}  Qd6 {[%clk 0:01:47]} 28. Qg3 {[%clk 0:01:27]}  Kh7 {[%clk 0:01:43]} 29. Rf2 {[%clk 0:01:23]}  Rf6 {[%clk 0:01:42]} 30. Raf1 {[%clk 0:01:23]}  Raf8 {[%clk 0:01:42]} 31. Bh3 {[%clk 0:01:23]}  g5 {[%clk 0:01:37]} 32. Qh2 {[%clk 0:01:12]}  g4 {[%clk 0:01:29]} 33. Bxg4 {[%clk 0:01:09]}  Rg8 {[%clk 0:01:30]} 34. Rg2 {[%clk 0:01:08]}  Rh6 {[%clk 0:01:28]} 35. Bf3 {[%clk 0:01:01]}  Rhg6 {[%clk 0:01:28]} 36. Qxh5+ {[%clk 0:00:59]} 1-0


[Site "https://www.chess.com"]

[Event "Titled Tuesday Blitz November 29 Late 2022"]
[White "Mekhitarian, Krikor Sevag"]
[Black "Petrovic, Aleksa"]
[WhiteFideId "2107660"]
[BlackFideId "967629"]
[WhiteElo "2604"]
[BlackElo "2224"]
[Result "1-0"]
[Round "06"]
[TimeControl "180+1"]
[Date "2022.11.30"]
[WhiteClock "0:00:43"]
[BlackClock "0:00:01"]

1. e4 {[%clk 0:03:00]}  e6 {[%clk 0:02:58]} 2. d4 {[%clk 0:02:59]}  d5 {[%clk 0:02:58]} 3. Nd2 {[%clk 0:02:59]}  c5 {[%clk 0:02:57]} 4. Ngf3 {[%clk 0:02:58]}  Nc6 {[%clk 0:02:57]} 5. exd5 {[%clk 0:02:57]}  exd5 {[%clk 0:02:58]} 6. Bb5 {[%clk 0:02:56]}  Nf6 {[%clk 0:02:56]} 7. O-O {[%clk 0:02:55]}  Be7 {[%clk 0:02:56]} 8. dxc5 {[%clk 0:02:56]}  Bxc5 {[%clk 0:02:55]} 9. Re1+ {[%clk 0:02:56]}  Be6 {[%clk 0:02:55]} 10. Nb3 {[%clk 0:02:56]}  Bb6 {[%clk 0:02:55]} 11. Nbd4 {[%clk 0:02:56]}  O-O {[%clk 0:02:55]} 12. Bxc6 {[%clk 0:02:18]}  bxc6 {[%clk 0:02:54]} 13. Rxe6 {[%clk 0:02:19]}  fxe6 {[%clk 0:02:41]} 14. Nxe6 {[%clk 0:02:20]}  Qe7 {[%clk 0:02:11]} 15. Nxf8 {[%clk 0:02:19]}  Ng4 {[%clk 0:02:06]} 16. Bg5 {[%clk 0:01:40]}  Bxf2+ {[%clk 0:00:49]} 17. Kh1 {[%clk 0:01:36]}  Qxf8 {[%clk 0:00:49]} 18. h3 {[%clk 0:01:25]}  Nf6 {[%clk 0:00:48]} 19. Bxf6 {[%clk 0:01:19]}  Qxf6 {[%clk 0:00:49]} 20. c3 {[%clk 0:01:20]}  Bc5 {[%clk 0:00:38]} 21. Qe2 {[%clk 0:01:18]}  Bd6 {[%clk 0:00:30]} 22. Re1 {[%clk 0:01:17]}  Qf4 {[%clk 0:00:27]} 23. Qe6+ {[%clk 0:01:16]}  Kh8 {[%clk 0:00:26]} 24. Qd7 {[%clk 0:01:12]}  Rf8 {[%clk 0:00:21]} 25. Qxc6 {[%clk 0:01:07]}  Qg3 {[%clk 0:00:13]} 26. Re8 {[%clk 0:01:07]}  h5 {[%clk 0:00:04]} 27. Rxf8+ {[%clk 0:01:04]}  Bxf8 {[%clk 0:00:05]} 28. Qxd5 {[%clk 0:01:03]}  Bd6 {[%clk 0:00:03]} 29. Qxh5+ {[%clk 0:01:02]}  Kg8 {[%clk 0:00:04]} 30. Qe8+ {[%clk 0:01:00]}  Kh7 {[%clk 0:00:04]} 31. Qe4+ {[%clk 0:01:00]}  Kg8 {[%clk 0:00:04]} 32. Qe1 {[%clk 0:00:58]}  Qg6 {[%clk 0:00:03]} 33. Nd4 {[%clk 0:00:55]}  Kh7 {[%clk 0:00:02]} 34. Qh4+ {[%clk 0:00:51]}  Kg8 {[%clk 0:00:02]} 35. Qe1 {[%clk 0:00:51]}  Kh7 {[%clk 0:00:02]} 36. a4 {[%clk 0:00:52]}  Bg3 {[%clk 0:00:01]} 37. Qd1 {[%clk 0:00:47]}  Qe4 {[%clk 0:00:02]} 38. Qc2 {[%clk 0:00:47]}  Qxc2 {[%clk 0:00:01]} 39. Nxc2 {[%clk 0:00:48]}  Kg6 {[%clk 0:00:01]} 40. Kg1 {[%clk 0:00:46]}  Kf5 {[%clk 0:00:02]} 41. Kf1 {[%clk 0:00:46]}  Ke4 {[%clk 0:00:02]} 42. Ke2 {[%clk 0:00:46]}  a5 {[%clk 0:00:02]} 43. Ne3 {[%clk 0:00:46]}  Bf4 {[%clk 0:00:01]} 44. Nc4 {[%clk 0:00:46]}  Kd5 {[%clk 0:00:01]} 45. Nxa5 {[%clk 0:00:45]}  Kc5 {[%clk 0:00:01]} 46. Nb3+ {[%clk 0:00:44]}  Kc4 {[%clk 0:00:01]} 47. Nd2+ {[%clk 0:00:45]}  Kc5 {[%clk 0:00:01]} 48. Kd3 {[%clk 0:00:44]}  Kd5 {[%clk 0:00:01]} 49. b4 {[%clk 0:00:43]}  Bc7 {[%clk 0:00:01]} 50. c4+ {[%clk 0:00:42]}  Kc6 {[%clk 0:00:01]} 51. Ne4 {[%clk 0:00:41]}  Kb7 {[%clk 0:00:01]} 52. c5 {[%clk 0:00:41]}  Be5 {[%clk 0:00:01]} 53. Kc4 {[%clk 0:00:42]}  g5 {[%clk 0:00:01]} 54. b5 {[%clk 0:00:43]}  g4 {[%clk 0:00:01]} 55. hxg4 {[%clk 0:00:43]} 1-0


[Site "https://www.chess.com"]